Cogmind - Beta 13 @@@ ROGUE MODE // 2024.04.05 @ 19:48:27 Player: Klevski Result: Self-destructed Performance ------------- Evolutions (1) 500 Regions Visited (3) 600 Robots Destroyed (18) 90 Value Destroyed (531) 531 Prototype IDs (2) 40 Alien Tech Used (0) 0 Bonus (0) 0 TOTAL SCORE: 1761 Bonus ------- None Cogmind --------- Core Integrity 112/400 Matter 194/300 Energy 61/100 System Corruption 0% Temperature Warm (104) Movement Core (200) Ox3 Location -9/Materials Parts ------- > --- POWER (1) -------- (None) > --- PROPULSION (2) --- (None) > --- UTILITY (4) ------ Medium Storage Unit Seismic Detector > --- WEAPON (2) ------- (None) > --- INVENTORY (10) --- Light Ion Engine Aluminum Leg Aluminum Leg Large Matter Pod (150) Experimental Sensor Array Targeting Computer Beam Cannon Datajack Peak State ------------ > --- POWER ------------ Light Ion Engine > --- PROPULSION ------- Light Treads > --- UTILITY ---------- Heat Sink Medium Storage Unit Structural Scanner Seismic Detector > --- WEAPON ----------- Assault Rifle Light Cannon > --- INVENTORY -------- Light Ion Engine Aluminum Leg Aluminum Leg Large Matter Pod Experimental Sensor Array Beam Cannon Beam Cannon Datajack [Rating: 9] Favorites ----------- Power Light Ion Engine Engine Light Ion Engine Propulsion Light Treads Treads Light Treads Utility Medium Storage Unit Device Structural Scanner Storage Medium Storage Unit Weapon Light Assault Rifle Energy Cannon Beam Cannon Ballistic Gun Light Assault Rifle Ballistic Cannon Light Cannon Build | -11 -10 -10 -9 ------- Run | Yrd Mat Min Mat Slots Evolved 2 | . . . 2 Power . | . . . . Propulsion . | . . . . Utility 2 | . . . 2 Weapon . | . . . . Parts Attached 18 | 6 6 3 3 Power 3 | 1 1 1 . Engine 3 | 1 1 1 . Core . | . . . . Reactor . | . . . . Propulsion 2 | 2 . . . Treads 2 | 2 . . . Leg . | . . . . Wheel . | . . . . Hover . | . . . . Flight . | . . . . Utility 6 | 1 3 . 2 Device 3 | . 1 . 2 Storage 3 | 1 2 . . Processor . | . . . . Hackware . | . . . . Protection . | . . . . Artifact . | . . . . Weapon 7 | 2 2 2 1 Energy Gun . | . . . . Energy Cannon 1 | . . . 1 Ballistic Gun 4 | 2 2 . . Ballistic Cannon 2 | . . 2 . Launcher . | . . . . Special Weapon . | . . . . Impact Weapon . | . . . . Slashing Weapon . | . . . . Piercing Weapon . | . . . . Special Melee Weapon . | . . . . Unidentified Prototypes . | . . . . Parts Lost 7 | . . 1 6 Power 1 | . . . 1 Propulsion 2 | . . 1 1 Utility 2 | . . . 2 Weapon 2 | . . . 2 Highest Loss Streak 6 | . . 1 6 To Critical Strikes . | . . . . Average Slot Usage (%) 96 | . 98 95 84 Engine 13 | . 14 14 10 Treads 24 | . 28 24 10 Device 15 | . 12 14 32 Storage 13 | . 14 14 11 Ballistic Gun 22 | . 28 15 9 Ballistic Cannon 4 | . . 12 9 Naked Turns . | . . . . Heaviest Build 21 | 10 18 19 21 Greatest Support 40 | 40 40 40 20 Greatest Overweight (x) 1 | . . . 1 Average Overweight (x) . | . . . 1 Largest Inventory Capacity 10 | 8 10 10 10 Average Capacity 9 | 6 9 10 10 Most Carried 10 | 4 10 10 9 Average Carried 8 | 2 8 10 8 Final Capacity 10 | 8 10 10 10 Final Carried 10 | 4 10 10 8 Class Distribution -------------------- 100% | Mutant Dominant Class ---------------- Mutant | -10/Materials Mutant | -10/Mines Mutant | -9/Materials Resources | -11 -10 -10 -9 ----------- Run | Yrd Mat Min Mat Matter Collected 604 | 191 342 71 . Remotely . | . . . . Salvage Created 532 | . 359 42 131 Parts 41 | . 30 5 6 Haulers Intercepted 1 | . 1 . . Recyclers Shooed 1 | . . 1 . Parts Field Recycled . | . . . . Retrieved Matter . | . . . . Parts Self-Destructed . | . . . . Prevented . | . . . . Kills | -11 -10 -10 -9 ------- Run | Yrd Mat Min Mat Combat Hostiles Destroyed 14 | . 6 5 3 Guns 10 | . 6 3 1 Cannons 4 | . . 2 2 Classes Destroyed 7 | . 4 2 1 Hauler 1 | . 1 . . Operator 1 | . 1 . . Watcher 2 | . 2 . . Swarmer 3 | . . 3 . Grunt 8 | . 6 . 2 Duelist 1 | . . . 1 Demolisher 2 | . . 2 . Best Kill Streak 4 | . 4 3 2 Combat Bots Only 4 | . 4 3 2 Max Kills in Single Turn 1 | . 1 1 1 Gunslinging . | . . . . Exploded . | . . . . Melee . | . . . . Uniques/NPCs Destroyed . | . . . . Combat | -11 -10 -10 -9 -------- Run | Yrd Mat Min Mat Hostile Shots Fired 106 | . 23 36 47 Missed 22 | . 3 12 7 Damage Taken 1417 | . 277 384 756 Core 513 | . 56 169 288 Absorbed by Shields . | . . . . Core Remaining (%) 55 | 100 . 10 . Volleys Fired 68 | . 39 14 15 Largest 2 | . 2 2 2 Hottest 60 | . 40 55 60 Shots Fired 129 | . 78 28 23 Gun 109 | . 78 23 8 Cannon 20 | . . 5 15 Launcher . | . . . . Special . | . . . . Kinetic 122 | . 78 28 16 Thermal 7 | . . . 7 Explosive . | . . . . Electromagnetic . | . . . . Robot Hit Streak 10 | . 10 7 6 Robot Miss Streak 7 | . 7 3 4 Penetration Max . | . . . . Secondary Targets . | . . . . Shots Hit Robots 72 | . 47 14 11 Core Hits 38 | . 26 8 4 Critical Kills . | . . . . Critical Parts Destroyed . | . . . . Critical Strikes . | . . . . Melee Attacks . | . . . . Impact . | . . . . Slashing . | . . . . Piercing . | . . . . Sneak Attacks . | . . . . Combat Hostiles . | . . . . Follow-up Attacks . | . . . . Damage Inflicted 846 | . 408 209 229 Guns 617 | . 408 156 53 Cannons 229 | . . 53 176 Explosions . | . . . . Melee . | . . . . Ramming . | . . . . Kinetic 738 | . 408 209 121 Thermal 108 | . . . 108 Explosive . | . . . . Electromagnetic . | . . . . Impact . | . . . . Slashing . | . . . . Piercing . | . . . . Highest Corruption . | . . . . Average Corruption . | . . . . Corruption Purged . | . . . . Corruption Blocked . | . . . . Overload Shots . | . . . . Overflow Damage . | . . . . Projectiles . | . . . . Explosions . | . . . . Melee . | . . . . Knockbacks 1 | . . . 1 Impact . | . . . . Kinetic 1 | . . . 1 Secondary . | . . . . Self-Inflicted Damage . | . . . . Shots . | . . . . Rammed . | . . . . Targets Rammed . | . . . . Kicked . | . . . . Crushed . | . . . . Highest Temperature 86 | . 18 . 86 Average Temperature 20 | . 10 . 44 Received Heat Transfer 315 | . 159 . 156 Siege Activations . | . . . . Robots Corrupted . | . . . . Combat Hostiles . | . . . . Parts Fried . | . . . . Impact Corruptions . | . . . . Robots Melted . | . . . . Combat Hostiles . | . . . . Parts Melted . | . . . . Heat Transferred 222 | . . . 222 Parts Sabotaged . | . . . . Parts Stolen . | . . . . Parts Stripped . | . . . . Power Chain Reactions . | . . . . Alert | -11 -10 -10 -9 ------- Run | Yrd Mat Min Mat Peak Influence 200 | . 200 123 87 Initial 47 | . . 13 47 Average 56 | . 54 86 53 Maximum Alert Level 1 | . 1 . . Low Security (%) 95 | 100 93 100 100 Level 1 4 | . 6 . . Level 2 . | . . . . Level 3 . | . . . . Level 4 . | . . . . Level 5 . | . . . . High Security . | . . . . Max Security . | . . . . Squads Dispatched 1 | . 1 . . Investigation . | . . . . Extermination . | . . . . Reinforcement 1 | . 1 . . Assault . | . . . . Garrison . | . . . . Intercept . | . . . . Searches Triggered . | . . . . Construction Impeded . | . . . . Haulers Reinforced . | . . . . Active Scanning Responses . | . . . . Cargo Convoy Interrupts . | . . . . Stealth | -11 -10 -10 -9 --------- Run | Yrd Mat Min Mat Distress Signals 3 | . 1 . 2 Communications Jammed . | . . . . Distress Signals . | . . . . Times Spotted 30 | . 16 5 9 Peak Tracking Total 6 | . 6 3 6 Tactical Retreats . | . . . . Traps | -11 -10 -10 -9 ------- Run | Yrd Mat Min Mat Traps Triggered . | . . . . Indirectly . | . . . . Trap Hack Attempts . | . . . . Triggered . | . . . . Disarmed . | . . . . Reprogrammed . | . . . . Reused . | . . . . Traps Extracted . | . . . . Installed . | . . . . Triggered . | . . . . Machines | -11 -10 -10 -9 ---------- Run | Yrd Mat Min Mat Machines Disabled . | . . . . Max in Single Turn . | . . . . Machines Repaired . | . . . . Machines Dismantled . | . . . . Machines Sabotaged . | . . . . Overloaded Fab Kills . | . . . . Hacking | -11 -10 -10 -9 --------- Run | Yrd Mat Min Mat Machines Accessed 6 | . 5 . 1 Terminals 4 | . 4 . . Fabricators . | . . . . Repair Stations . | . . . . Recycling Units 1 | . 1 . . Scanalyzers 1 | . . . 1 Garrison Access . | . . . . Total Hacks 15 | . 12 . 3 Successful 7 | . 7 . . Failed 8 | . 5 . 3 Catastrophic 1 | . . . 1 Database Lockouts . | . . . . Manual 8 | . 8 . . Terminals 10 | . 10 . . Fabricators . | . . . . Repair Stations . | . . . . Recycling Units 2 | . 2 . . Scanalyzers 3 | . . . 3 Garrison Access . | . . . . Terminal Hacks 2 | . 2 . . Prototype ID Bank 1 | . 1 . . Locate Traps 1 | . 1 . . Fabricator Hacks . | . . . . Repair Station Hacks . | . . . . Recycling Unit Hacks . | . . . . Scanalyzer . | . . . . Garrison Access Hacks . | . . . . Unauthorized Hacks 5 | . 5 . . Terminals 3 | . 3 . . Botnet 2 | . 2 . . Operators 1 | . 1 . . Fabricators . | . . . . Repair Stations . | . . . . Recycling Units 2 | . 2 . . Monitor 1 | . 1 . . Mask 1 | . 1 . . Scanalyzers . | . . . . Garrison Access . | . . . . Data Cores Recovered 1 | . 1 . . Used . | . . . . Hacking Detections 6 | . 5 . 1 Full Trace Events . | . . . . Feedback Events . | . . . . Feedback Blocked . | . . . . Robot Schematics Acquired . | . . . . Robots Built . | . . . . Authchips . | . . . . Time . | . . . . Total Robot Build Rating . | . . . . Part Schematics Acquired . | . . . . Parts Built . | . . . . Authchips . | . . . . Time . | . . . . Total Part Build Rating . | . . . . Parts Repaired . | . . . . Time . | . . . . Parts Recycled . | . . . . Recycled Matter . | . . . . Retrieved Matter . | . . . . Retrieved Components . | . . . . Parts Scanalyzed . | . . . . Part Schematics Acquired . | . . . . Parts Damaged . | . . . . Bothacking | -11 -10 -10 -9 ------------ Run | Yrd Mat Min Mat Used RIF Installer . | . . . . Robots Hacked . | . . . . Non-combat . | . . . . Combat . | . . . . Robot Hacks Applied . | . . . . Relay Couplers Released . | . . . . Fabnet Peak Effective % . | . . . . Robots Rewired . | . . . . Allies Hacked . | . . . . Hacks Repelled . | . . . . Allies | -11 -10 -10 -9 -------- Run | Yrd Mat Min Mat Total Allies . | . . . . Largest Group . | . . . . Highest-Rated Group . | . . . . Highest-Rated Ally . | . . . . Total Orders . | . . . . Ally Attacks . | . . . . Total Damage . | . . . . Kills . | . . . . Allies Corrupted . | . . . . Allies Melted . | . . . . Intel | -11 -10 -10 -9 ------- Run | Yrd Mat Min Mat Robot Analysis Total . | . . . . Derelict Logs Recovered . | . . . . Drone Launches . | . . . . Drone Recoveries . | . . . . Exploration | -11 -10 -10 -9 ------------- Run | Yrd Mat Min Mat Turns Passed 1243 | 95 739 259 150 Spaces Moved 589 | 51 364 129 45 Core 4 | 4 . . . Treads 585 | 47 364 129 45 Legs . | . . . . Wheels . | . . . . Hover . | . . . . Flight . | . . . . Fastest Speed 50 | 50 160 160 240 Average Speed 165 | 151 160 160 240 Slowest Speed 240 | 160 160 160 240 Overloaded Moves . | . . . . Propulsion Burnouts . | . . . . Robots Hopped . | . . . . Cave-ins Triggered . | . . . . Exploration Rate (%) 22 | 4 63 15 8 Regions Visited 3 Branch Regions 1 Pre-discovered Areas . | . . . . Known Exits Taken . | . . . . Unknown Exits Taken 3 | 1 1 1 . Scrap Searched 3 | . . 3 . Spaces Dug . | . . . . Terrain Destroyed . | . . . . Melee . | . . . . Projectile . | . . . . AOE . | . . . . Terrain Rammed . | . . . . Walls Destroyed . | . . . . Machines Disabled . | . . . . Actions | -11 -10 -10 -9 --------- Run | Yrd Mat Min Mat Total 743 | 66 457 156 64 Wait 53 | 6 40 7 . Move 586 | 50 363 128 45 Hop . | . . . . Pick Up 11 | 4 5 1 1 Fast Attach 10 | 6 3 1 . Attach 4 | . 1 . 3 Detach 2 | . 2 . . Swap 4 | . 2 2 . Drop 5 | . 2 3 . Fire 68 | . 39 14 15 Melee . | . . . . Ram . | . . . . Kick . | . . . . Crush . | . . . . Escape Stasis . | . . . . Rewire . | . . . . Trap . | . . . . Miscellaneous . | . . . . Route ------- -11/Scrapyard -10/Materials (discovered 4 exits: *Mat x3 / [*Min]) -10/Mines -9/Materials History --------- Turn | Location | Event 20 | -11/Scrapyard | Discovered new exit (range 16) 96 | -11/Scrapyard | Entered Materials 166 | -10/Materials | Discovered new exit (range 16) 309 | -10/Materials | Build established: Mutant 424 | -10/Materials | Discovered new exit (range 11) 619 | -10/Materials | Discovered new exit (range 6) 761 | -10/Materials | Discovered new exit (range 14) 835 | -10/Materials | Entered Mines 935 | -10/Mines | Discovered new exit (range 7) 993 | -10/Mines | Found a damaged Exp. Sensor Array with a note attached 996 | -10/Mines | Found Prototype Device 1008 | -10/Mines | Assembled infested the area 1028 | -10/Mines | Core integrity fell below 50% 1032 | -10/Mines | Core integrity fell below 20% 1094 | -10/Mines | Entered Materials 1094 | -9/Materials | Evolved 2 slots: Utility x2 1241 | -9/Materials | Core integrity fell below 50% 1244 | -9/Materials | Self-destructed Last Messages --------------- 01208_ G-34 Mercenary destroyed. 01209_ C-30 ARC bursts open, deploying its payload. 01209_ L-31 Rogue unfolds itself. 01211_ G-34 Mercenary destroyed. 01220_ L-31 Rogue knocked back. 01227_ R-06 Scavenger collects Sml. Laser. 01228_ Lgt. Cannon destroyed. 01228_ Assault Rifle destroyed. 01230_ R-06 Scavenger collects Ion Engine. 01230_ Lgt. Ion Engine destroyed. 01231_ Heat Sink destroyed. 01234_ R-06 Scavenger collects Ion Engine. 01235_ R-06 Scavenger collects Aluminum Leg. 01235_ Lgt. Treads destroyed. 01236_ L-31 Rogue destroyed. 01237_ R-06 Scavenger collects Aluminum Leg. 01240_ Structural Scanner destroyed. 01243_ Beam Cannon severed. 01243_ K-01 Serf collects debris. Map ----- +----------------------------------------------------+ | ?????????????????????????????????????????????????? | | ?????????????????????????????????????????????????? | | ?????????????????????????????????????????????????? | | ?????????????????????????????????????????????????? | | ?????????????????????????????????????????????????? | | ?????????????????????????????????????????????????? | | ?????????????????????????????????????????????????? | | ?????????????????????????????????????????????????? | | ?????????????????????????????????????????????????? | | ?????????????????????????????????????????????????? | | ?????????????????????????????????????????????????? | | ?????????????????????????????????????????????????? | | ??????????????####???????????????? ##########??? | | ??????????????####????????????????#############??? | | ?????????????? ????????????????## ##??? | | ???????????????? ???????????????## ##??? | | ???????????????? ???????????????## ]]= % ##??? | | ???????????????? ??????????????## ]!= ##??? | | ??????????? ??? """ ?????????????##[ ]! ##??? | | ??????????? k """ ?????????????## ##??? | | ??????????? %""" ##??????????## ##??? | | ?????????? ^ % g ############## #???? | | ?????????? % #################+#####???? | | ????????? ! % ##???? | | ????????? g rgm ##???? | | ????????? l@ ###??? | | ???????????????### ##########+######+######??? | | ???????????????#####+####### # ##??? | | ???????????????? ????##""" # """ """ ##??? | | ??????????????????????????##""" # """ """ ##??? | | ??????????????????????????##""" # "S """ ##??? | | ??????????????????????????##""" # """ ##??? | | ??????????????????????????##""" # "" ##??? | | ??????????????????????????## # ##??? | | ???????????????????????????? # ##??? | | ????????????????????????????###################??? | | | | | | | | | | | | | | | | | | | | | | | | | | | | | +----------------------------------------------------+ Best States ------------- Heat Dissipation 38 Energy Generation 10 Energy Capacity 125 Matter Stores 300 Matter Capacity 450 Sight Range 16 Terrain Scan Density 10 Evasion (%) 50 Recoil Reduction 2 Item Schematics ----------------- None Robot Schematics ------------------ None Fabricated ------------ Nothing Alien Tech Used ----------------- None Achievements -------------- None Challenges ------------ None Game ------ Seed DisruptionLightningFrame Manual? 0 Play Time 00:31:01 Cumulative 142.8 hours Start 2024.04.05 @ 18:51:38 End 2024.04.05 @ 19:48:27 Sessions 1 Manual Loads 0 Difficulty Rogue Special Mode None Game No. 54 Rogue 54 Adventurer 0 Explorer 0 Win Type - Total 2 Types 2/0/0/0/0/0/0/0/0 Lore% 54 Gallery% 61 Achievement% 52 Wizard Run 0 Options --------- Layout 1 ASCII 0 Keyboard 1 Movement Numpad Keybinds 0 Fullscreen 1 Font 32/SmallcapsGlow Map View 50x35 Zoom Use 0% Tactical HUD 1 Map Filters NONE Filters NONE Steam 1 RUN: f4cce411-6170-4068-9155-d84cd981a405